fUST/lending_fUST_20240125
["ID","MTS","AMOUNT","RATE_DAILY","PERIOD"]
[312677470,1706143840298,-1587.095918,0.00044711,7]
[312677471,1706143840307,-1587.095918,0.00044711,7]
[312677472,1706143840317,-1587.095918,0.00044711,7]
[312677473,1706143840326,-1587.095918,0.00044711,7]
[312677474,1706143840336,-1587.095918,0.00044711,7]
[312677475,1706143840345,-1587.095918,0.00044711,7]
[312677476,1706143840355,-1587.095918,0.00044711,7]
[312677477,1706143840364,-1587.095918,0.00044711,7]
[312677478,1706143840373,-1587.095918,0.00044711,7]
[312677479,1706143840383,-1587.095913,0.00044711,7]
[312677480,1706143840392,-57378.85131134,0.00044712,2]
[312677540,1706143843257,-154.84515485,0.00018623,2]
[312677541,1706143843268,-1175.15186878,0.00025,2]
[312677542,1706143843280,-451.35100004,0.00025,2]
[312677558,1706143846276,-1091.3,0.00025,2]
[312677559,1706143846342,-4666.34562884,0.00025,2]
[312677560,1706143846351,-154.84515485,0.00032874,5]
[312677561,1706143846361,-173.21643407,0.00032875,7]
[312677562,1706143846370,-472.43428637,0.00032875,7]
[312677563,1706143846379,-201.27196211,0.00032875,7]
[312677564,1706143846389,-20235.1369358,0.00044712,2]
[312677565,1706143846398,-6706.11011831,0.00044712,7]
[312677693,1706145032435,-260.95376915,0.00019137,2]
[312677695,1706145032444,-156.07097879,0.00019137,2]
[312677697,1706145032453,-161.07323855,0.00019137,2]
[312677699,1706145032463,-272.6306295,0.00019138,2]
[312677701,1706145032472,-1484.61502997,0.00019138,2]
[312677703,1706145032481,-452.88221546,0.00019138,2]
[312677705,1706145032491,-688.13841462,0.00019139,2]
[312677707,1706145032500,-488.20735123,0.00019139,2]
[312677709,1706145032512,-107.06583566,0.00019139,2]
[312677711,1706145032524,-294.97608218,0.00019139,2]
[312677713,1706145032533,-522.24897159,0.00019139,2]
[312677714,1706145032542,-154.84515485,0.0001914,2]
[312677715,1706145032551,-154.84515485,0.0001914,3]
[312677716,1706145032560,-1267.12305076,0.00019141,2]
[312677717,1706145032568,-680.27751696,0.00019142,2]
[312677718,1706145032577,-154.84515485,0.00019142,2]
[312677719,1706145032586,-199.30151643,0.00019142,2]
[312677720,1706145032595,-21690.99033113,0.00019142,2]
[312677721,1706145032604,-583.47173118,0.00019144,2]
[312677722,1706145032615,-9959.81794391,0.00019144,2]
[312677723,1706145032624,-81222.81038163,0.00019147,2]
[312677724,1706145032633,-470.80732048,0.00019149,2]
[312677725,1706145032642,-2104.07287401,0.00019149,2]
[312677726,1706145032651,-2074.57916651,0.00019149,2]
[312677727,1706145032660,-170.38743963,0.0001915,2]
[312677728,1706145032669,-24900.0,0.00019153,2]
[312677729,1706145032678,-323.23544643,0.0002,2]
[312677730,1706145032687,-154.84515485,0.0002,2]
[312677731,1706145032696,-850.57862657,0.0002,2]
[312677732,1706145032704,-155.1108103,0.00020208,2]
[312677733,1706145032714,-938.03984623,0.00020209,2]
[312677734,1706145032723,-166.222775,0.0002021,2]
[312677735,1706145032732,-166.666666,0.00021918,2]
[312677736,1706145032741,-3969.42099078,0.00022,2]
[312677737,1706145032750,-426.10577832,0.00022,2]
[312677738,1706145032760,-200.0,0.00022201,7]
[312677739,1706145032770,-166.666666,0.00022431,2]
[312677740,1706145032779,-760.47051245,0.00022497,5]
[312677741,1706145032787,-166.666666,0.00022944,2]
[312677742,1706145032796,-166.666666,0.00023456,2]
[312677743,1706145032805,-166.666666,0.00023969,2]
[312677744,1706145032814,-2931.30859742,0.00024247,5]
[312677745,1706145032823,-280.0,0.00024421,7]
[312677746,1706145032832,-166.666666,0.00024482,2]
[312677747,1706145032842,-2997.01420292,0.00024497,2]
[312677748,1706145032850,-380.0,0.00024658,2]
[312677750,1706145032859,-286.76687185,0.00024872,2]
[312677752,1706145032868,-498.54555384,0.0002496,5]
[312677754,1706145032877,-500.0,0.00024994,2]
[312677756,1706145032886,-500.0,0.00024994,2]
[312677758,1706145032894,-500.0,0.00024994,2]
[312677760,1706145032903,-500.0,0.00024994,2]
[312677762,1706145032912,-475.68781302,0.00024994,2]
[312677764,1706145032921,-500.0,0.00024994,2]
[312677766,1706145032930,-500.0,0.00024994,2]
[312677768,1706145032938,-500.0,0.00024994,2]
[312677770,1706145032946,-500.0,0.00024994,2]
[312677771,1706145032955,-500.0,0.00024994,2]
[312677773,1706145032963,-500.0,0.00024994,2]
[312677775,1706145032971,-500.0,0.00024994,2]
[312677777,1706145032981,-500.0,0.00024994,2]
[312677780,1706145032991,-500.0,0.00024994,2]
[312677782,1706145033000,-500.0,0.00024994,2]
[312677784,1706145033009,-500.0,0.00024994,2]
[312677786,1706145033018,-314.4059647,0.00024994,2]
[312677788,1706145033027,-500.0,0.00024994,2]
[312677789,1706145033037,-543.19897174,0.00024994,2]
[312677792,1706145033054,-500.0,0.00024994,2]
[312677795,1706145033068,-500.0,0.00024994,2]
[312677797,1706145033078,-500.0,0.00024994,2]
[312677799,1706145033087,-500.0,0.00024994,2]
[312677800,1706145033097,-500.0,0.00024994,2]
[312677802,1706145033107,-500.0,0.00024994,2]
[312677803,1706145033117,-500.0,0.00024994,2]
[312677805,1706145033127,-500.0,0.00024994,2]
[312677807,1706145033137,-316.64432369,0.00024994,2]
[312677911,1706145038519,-154.84515485,0.00019136,2]
[312677913,1706145038529,-154.84515485,0.00019136,2]
[312677915,1706145038538,-3747.07,0.00024987,3]
[312677917,1706145038547,-183.35567631,0.00024994,2]
[312677919,1706145038556,-500.0,0.00024994,2]
[312677921,1706145038566,-500.0,0.00024994,2]
[312677923,1706145038575,-500.0,0.00024994,2]
[312677925,1706145038584,-500.0,0.00024994,2]
[312677927,1706145038594,-500.0,0.00024994,2]
[312677929,1706145038603,-500.0,0.00024994,2]
[312677930,1706145038613,-500.0,0.00024994,2]
[312677932,1706145038622,-500.0,0.00024994,2]
[312677934,1706145038631,-500.0,0.00024994,2]
[312677937,1706145038641,-500.0,0.00024994,2]
[312677939,1706145038650,-500.0,0.00024994,2]
[312677941,1706145038660,-500.0,0.00024994,2]
[312677943,1706145038669,-500.0,0.00024994,2]
[312677945,1706145038678,-500.0,0.00024994,2]
[312677947,1706145038689,-500.0,0.00024994,2]
[312677949,1706145038698,-345.34224088,0.00024994,2]
[312677951,1706145038707,-500.0,0.00024994,2]
[312677953,1706145038716,-500.0,0.00024994,2]
[312677955,1706145038725,-238.31842393,0.00024994,2]
[312677957,1706145038734,-500.0,0.00024994,2]
[312677959,1706145038743,-500.0,0.00024994,2]
[312677961,1706145038752,-500.0,0.00024994,2]
[312677963,1706145038761,-500.0,0.00024994,2]
[312677965,1706145038770,-500.0,0.00024994,2]
[312677967,1706145038779,-500.0,0.00024994,2]
[312677969,1706145038788,-500.0,0.00024994,2]
[312677971,1706145038797,-500.0,0.00024994,2]
[312677973,1706145038806,-500.0,0.00024994,2]
[312677975,1706145038815,-500.0,0.00024994,2]
[312677977,1706145038823,-484.22400276,0.00024994,2]
[312677979,1706145038832,-500.0,0.00024994,2]
[312677981,1706145038841,-500.0,0.00024994,2]
[312677983,1706145038850,-500.0,0.00024994,2]
[312677985,1706145038859,-427.50902312,0.00024994,2]
[312677987,1706145038868,-500.0,0.00024994,2]
[312677989,1706145038877,-300.0,0.00024994,2]
[312677991,1706145038886,-154.84515485,0.00024995,2]
[312677993,1706145038895,-685.07842528,0.00024995,2]
[312677995,1706145038904,-198.35421752,0.00024995,2]
[312677997,1706145038914,-193.33123141,0.00024995,2]
[312677999,1706145038923,-267.98689299,0.00024995,2]
[312678001,1706145038932,-644.40876473,0.00024995,2]
[312678003,1706145038941,-11560.2133615,0.00024995,2]
[312678005,1706145038950,-156.54818831,0.00024995,2]
[312678007,1706145038959,-2836.67729407,0.00024995,2]
[312678009,1706145038969,-329.63381135,0.00024995,2]
[312678011,1706145038979,-11724.55601252,0.00024996,2]
[312678013,1706145038988,-154.98449536,0.00024997,2]
[312678014,1706145038997,-284.85781043,0.00024997,2]
[312678016,1706145039006,-156.89450249,0.00024997,2]
[312678019,1706145039016,-1253.41868812,0.00024997,2]
[312678021,1706145039026,-5453.77773352,0.00024997,2]
[312678023,1706145039035,-264.05065044,0.00024997,2]
[312678025,1706145039044,-1293.76681809,0.00024997,2]
[312678027,1706145039054,-903.63325516,0.00024997,2]
[312678029,1706145039063,-154.95380821,0.00024997,2]
[312678031,1706145039073,-309.32455563,0.00024997,2]
[312678033,1706145039082,-202.89749106,0.00024997,2]
[312678035,1706145039092,-154.87609912,0.00024997,2]
[312678037,1706145039102,-19553.16458423,0.00024997,2]
[312678039,1706145039113,-211.59032414,0.00024997,2]
[312678041,1706145039123,-2478.15575317,0.00024997,2]
[312678043,1706145039132,-225.19634411,0.00024997,2]
[312678045,1706145039142,-301.93072688,0.00024997,2]
[312678047,1706145039151,-187.90145299,0.00024997,2]
[312678049,1706145039161,-818.67757888,0.00024997,2]
[312678051,1706145039170,-326.75620635,0.00024997,2]
[312678053,1706145039179,-154.89162849,0.00024997,2]
[312678055,1706145039189,-236.6961873,0.00024997,2]
[312678057,1706145039199,-1320.80319943,0.00024997,2]
[312678059,1706145039208,-178.19682148,0.00024997,2]
[312678061,1706145039218,-154.92253873,0.00024997,2]
[312678063,1706145039227,-175.26340057,0.00024997,2]
[312678065,1706145039236,-237.74153663,0.00024997,2]
[312678067,1706145039246,-2816.00267882,0.00024997,2]
[312678069,1706145039257,-876.60031792,0.00024997,2]
[312678071,1706145039266,-154.86062544,0.00024997,2]
[312678073,1706145039276,-19871.73595374,0.00024997,2]
[312678075,1706145039286,-166.94378863,0.00024998,2]
[312678078,1706145039296,-154.95351395,0.00024998,2]
[312678080,1706145039306,-155.0993067,0.00024998,2]
[312678082,1706145039315,-1500.40236428,0.00025,2]
[312678084,1706145039324,-25339.83491346,0.00025,2]
[312678086,1706145039334,-1002.56145589,0.00025,2]
[312678088,1706145039343,-154.9690062,0.00025,2]
[312678090,1706145039352,-679.71377977,0.00025,2]
[312678091,1706145039362,-154.9690062,0.00025,2]
[312678094,1706145039371,-154.98450155,0.00025,2]
[312678095,1706145039381,-7384.14849766,0.00025,2]
[312678098,1706145039390,-4724.75315233,0.00025,2]
[312678100,1706145039400,-7301.5,0.00025,2]
[312678102,1706145039409,-682.68892768,0.00027279,2]
[312678104,1706145039418,-48098.25682838,0.00027279,2]
[312678106,1706145039427,-676.28110474,0.00027279,2]
[312678108,1706145039437,-4496.48,0.00027397,3]
[312678110,1706145039446,-1942.40988753,0.00029,2]
[312678112,1706145039456,-154.84515485,0.0003,4]
[312678114,1706145039465,-243.2070347,0.0003,4]
[312678116,1706145039475,-231.21398044,0.0003,4]
[312678118,1706145039483,-2196.43554395,0.0003,2]
[312678120,1706145039493,-139234.85869816,0.0003,4]
[312678122,1706145039502,-208.4755949,0.00030137,2]
[312678124,1706145039514,-169.122159,0.00030137,2]
[312678126,1706145039525,-158.273752,0.00030137,2]
[312678128,1706145039534,-208240.08750935,0.000309,2]
[312678130,1706145039543,-161.3011265,0.00031,4]
[312678132,1706145039552,-391379.25992679,0.00032,15]
[312678134,1706145039563,-154.86062544,0.00032,4]
[312678136,1706145039572,-298.979928,0.00032,2]
[312678138,1706145039582,-1587.095918,0.00032,2]
[312678140,1706145039591,-1587.095918,0.00032,2]
[312678142,1706145039602,-151.0,0.00032,2]
[312678144,1706145039612,-151.0,0.00032,2]
[312678146,1706145039622,-151.0,0.00032,2]
[312678148,1706145039631,-169.122159,0.00032877,2]
[312678150,1706145039641,-1551.37467146,0.00034,3]
[312678152,1706145039649,-177.0772953,0.00034247,2]
[312678154,1706145039659,-2085.08363542,0.00035,4]
[312678156,1706145039669,-333.39122483,0.00035,4]
[312678165,1706145039738,-4593.06068613,0.000355,14]
[312678167,1706145039756,-169.122159,0.00035616,2]
[312678169,1706145039766,-154.84515485,0.00036,4]
[312678171,1706145039776,-30396.95170688,0.00037,2]
[312678173,1706145039785,-151.0,0.00037448,4]
[312678175,1706145039794,-11759.33516536,0.00038,10]
[312678177,1706145039803,-169.122159,0.00038356,2]
[312678179,1706145039813,-3873.88692518,0.00038414,5]
[312688890,1706146232589,-163.80645136,0.00022759,2]
[312688892,1706146232598,-156.09780848,0.00022857,2]
[312688894,1706146232607,-154.84515485,0.00022857,2]
[312688896,1706146232616,-154.84515485,0.00022857,2]
[312688897,1706146232625,-106.22543046,0.00022858,4]
[312688917,1706146238747,-48.61972439,0.00022858,4]
[312688919,1706146238757,-1267.361247,0.00022858,2]
[312688921,1706146238768,-595.27318689,0.00022859,2]
[312688923,1706146238778,-323.23544643,0.00022859,2]
[312688925,1706146238787,-426.10577832,0.00022859,2]
[312688927,1706146238796,-4394.85106775,0.0002286,2]
[312689765,1706146246723,-9358.10521266,0.0002286,2]
[312689767,1706146246736,-2172.81572479,0.0002286,2]
[312694601,1706147437896,-595.3566365,0.00020722,2]
[312694603,1706147437906,-154.84515485,0.00020723,4]
[312694605,1706147437915,-154.84515485,0.00020723,2]
[312694607,1706147437925,-218.47854903,0.00020723,2]
[312694610,1706147437940,-4597.22154866,0.00020723,2]
[312694612,1706147437949,-2205.25409219,0.0002076,2]
[312694614,1706147437958,-166.222775,0.00021657,2]
[312694616,1706147437968,-684.3185712,0.00022117,2]
[312694618,1706147437977,-324.34798522,0.00022858,2]
[312694620,1706147437986,-324.81846432,0.00022858,2]
[312694622,1706147437996,-179.44389491,0.00022859,2]
[312694624,1706147438006,-155.45338236,0.00022859,2]
[312694626,1706147438016,-173.72308377,0.00022859,2]
[312694628,1706147438025,-2085.40450746,0.0002286,2]
[312694631,1706147438040,-3493.89919508,0.00024318,2]
[312694633,1706147438054,-5609.89249983,0.00024805,2]
[312694719,1706147442881,-154.84515485,0.00020721,2]
[312694721,1706147442891,-2224.25535582,0.00024805,2]
[312694868,1706148631986,-154.84515485,0.00022104,4]
[312694869,1706148631996,-447.04268323,0.00022106,2]
[312694870,1706148632007,-1423.65147968,0.00022106,2]
[312694913,1706148638043,-1263.82901674,0.00022105,3]
[312694959,1706148643532,-2711.74098326,0.00022105,3]
[312694960,1706148643542,-11211.92163072,0.00022115,2]
[312695036,1706149838255,-168.43111649,0.0001927,2]
[312695038,1706149838264,-1026.64006432,0.00019366,2]
[312695040,1706149838273,-154.84515485,0.00019367,2]
[312695042,1706149838283,-295.01713766,0.00019367,2]
[312695044,1706149838293,-154.84515485,0.00019368,2]
[312695046,1706149838302,-154.84515485,0.00019368,2]
[312695048,1706149838311,-243.23479186,0.00019368,2]
[312695050,1706149838321,-329.68526722,0.00019369,2]
[312695052,1706149838330,-21693.55695647,0.00019369,2]
[312695054,1706149838339,-211.61433974,0.0001937,2]
[312695056,1706149838349,-10546.60603151,0.0001937,2]
[312695058,1706149838358,-154.84515485,0.0001937,3]
[312695060,1706149838367,-154.84515485,0.00019371,2]
[312695062,1706149838376,-1253.9943907,0.00019371,2]
[312695064,1706149838386,-1484.80386677,0.00019371,2]
[312695066,1706149838395,-4686.9,0.00019372,3]
[312695068,1706149838404,-265.58036127,0.00019379,2]
[312695070,1706149838414,-644.67775668,0.00019379,2]
[312695072,1706149838423,-81230.33881666,0.00019382,2]
[312695074,1706149838434,-822.68328998,0.00019473,2]
[312695076,1706149838443,-167.42368429,0.00019474,2]
[312695078,1706149838453,-202.95281076,0.00019474,2]
[312695080,1706149838463,-237.18290849,0.00019474,2]
[312695082,1706149838473,-155.19487419,0.00019474,2]
[312695084,1706149838482,-155.27163352,0.00019474,2]
[312695086,1706149838492,-157.10944563,0.00019474,2]
[312695088,1706149838500,-906.08818416,0.00019474,2]
[312695090,1706149838510,-302.82871979,0.00019474,2]
[312695092,1706149838519,-154.97575891,0.00019474,2]
[312695094,1706149838528,-11766.53410794,0.00019474,2]
[312695096,1706149838537,-238.65749943,0.00019474,2]
[312695098,1706149838546,-189.16267344,0.00019474,2]
[312695100,1706149838555,-19919.731739,0.00019474,2]
[312695102,1706149838564,-155.24962663,0.00019474,2]
[312695103,1706149838573,-193.44653572,0.00019474,2]
[312695105,1706149838582,-156.55351786,0.00019474,2]
[312695106,1706149838591,-1296.6124409,0.00019474,2]
[312695108,1706149838600,-11650.90251957,0.00019474,2]
[312695110,1706149838609,-2821.28154322,0.00019474,2]
[312695111,1706149838618,-225.3996251,0.00019474,2]
[312695113,1706149838627,-19588.24835949,0.00019474,2]
[312695114,1706149838636,-178.62187967,0.00019474,2]
[312695116,1706149838645,-2848.88766005,0.00019474,2]
[312695118,1706149838654,-198.41655758,0.00019474,2]
[312695119,1706149838664,-154.92003135,0.00019474,2]
[312695121,1706149838673,-690.57418058,0.00019474,2]
[312695123,1706149838682,-155.02616663,0.00019474,2]
[312695124,1706149838691,-268.04596442,0.00019474,2]
[312695126,1706149838701,-309.4796622,0.00019475,2]
[312695127,1706149838710,-5475.49707776,0.00019475,2]
[312695129,1706149838719,-2489.95484221,0.00019475,2]
[312695131,1706149838729,-264.22501911,0.00019475,2]
[312695132,1706149838738,-175.66742688,0.00019475,2]
[312695134,1706149838747,-470.87385711,0.00019491,2]
[312695136,1706149838755,-2074.94658461,0.00019491,2]
[312695137,1706149838765,-24900.0,0.00019493,2]
[312695139,1706149838773,-151.0,0.0001973,2]
[312695140,1706149838783,-151.0,0.0001973,2]
[312695142,1706149838792,-215.328144,0.00019895,2]
[312695144,1706149838801,-1407.90685393,0.000199,2]
[312695145,1706149838810,-151.0,0.00019901,2]
[312695147,1706149838819,-151.0,0.00019901,2]
[312695148,1706149838827,-151.0,0.00019901,2]
[312695150,1706149838836,-151.0,0.00019901,2]
[312695152,1706149838846,-151.0,0.00019901,2]
[312695154,1706149838855,-151.0,0.00019901,2]
[312695155,1706149838864,-151.0,0.00019901,2]
[312695157,1706149838873,-151.0,0.00019901,2]
[312695159,1706149838883,-300.700025,0.00019901,2]
[312695160,1706149838892,-300.700025,0.00019901,2]
[312695162,1706149838901,-300.700025,0.00019901,2]
[312695164,1706149838910,-300.700025,0.00019901,2]
[312695165,1706149838918,-300.700025,0.00019901,2]
[312695167,1706149838927,-300.700025,0.00019901,2]
[312695168,1706149838936,-1646.103431,0.00019901,2]
[312695170,1706149838945,-1646.103431,0.00019901,2]
[312695172,1706149838954,-1646.103431,0.00019901,2]
[312695174,1706149838963,-1646.103431,0.00019901,2]
[312695175,1706149838972,-1646.103431,0.00019901,2]
[312695177,1706149838981,-1646.103431,0.00019901,2]
[312695179,1706149838990,-1470.1693948,0.00020015,2]
[312695181,1706149839000,-500.0,0.00020822,2]
[312695182,1706149839009,-500.0,0.00020822,2]
[312695184,1706149839018,-500.0,0.00020822,2]
[312695186,1706149839028,-500.0,0.00020822,2]
[312695187,1706149839037,-476.78457971,0.00020822,2]
[312695189,1706149839045,-500.0,0.00020822,2]
[312695191,1706149839054,-500.0,0.00020822,2]
[312695193,1706149839063,-500.0,0.00020822,2]
[312695194,1706149839073,-500.0,0.00020822,2]
[312695196,1706149839082,-500.0,0.00020822,2]
[312695198,1706149839091,-500.0,0.00020822,2]
[312695199,1706149839101,-500.0,0.00020822,2]
[312695201,1706149839110,-500.0,0.00020822,2]
[312695203,1706149839119,-213.70545073,0.00020822,2]
[312695205,1706149839129,-500.0,0.00020822,2]
[312695206,1706149839138,-500.0,0.00020822,2]
[312695214,1706149839231,-354.085898,0.00020822,2]
[312695216,1706149839241,-479.9642983,0.00020822,2]
[312695218,1706149839251,-340.99233781,0.00020822,2]
[312695220,1706149839262,-500.0,0.00020822,2]
[312695221,1706149839271,-492.0904531,0.00020822,2]
[312695223,1706149839280,-500.0,0.00020822,2]
[312695225,1706149839289,-500.0,0.00020822,2]
[312695226,1706149839298,-500.0,0.00020822,2]
[312695228,1706149839307,-600.0,0.00020822,2]
[312695230,1706149839316,-500.0,0.00020822,2]
[312695231,1706149839326,-500.0,0.00020822,2]
[312695233,1706149839335,-200.0,0.00020822,2]
[312695235,1706149839344,-500.0,0.00020822,2]
[312695236,1706149839353,-500.0,0.00020822,2]
[312695238,1706149839362,-446.68454105,0.00020822,2]
[312695240,1706149839371,-500.0,0.00020822,2]
[312695242,1706149839381,-500.0,0.00020822,2]
[312695243,1706149839390,-200.0,0.00020822,2]
[312695245,1706149839399,-500.0,0.00020822,2]
[312695247,1706149839409,-640.0,0.00020822,2]
[312695249,1706149839418,-500.0,0.00020822,2]
[312695250,1706149839427,-500.0,0.00020822,2]
[312695252,1706149839436,-500.0,0.00020822,2]
[312695254,1706149839445,-500.0,0.00020822,2]
[312695255,1706149839454,-500.0,0.00020822,2]
[312695257,1706149839463,-500.0,0.00020822,2]
[312695259,1706149839473,-500.0,0.00020822,2]
[312695260,1706149839483,-500.0,0.00020822,2]
[312695262,1706149839492,-500.0,0.00020822,2]
[312695264,1706149839501,-576.2737927,0.00020822,2]
[312695266,1706149839510,-542.0072185,0.00020822,2]
[312695267,1706149839519,-500.0,0.00020822,2]
[312695269,1706149839529,-490.65473914,0.00020822,2]
[312695271,1706149839539,-500.0,0.00020822,2]
[312695273,1706149839548,-500.0,0.00020822,2]
[312695274,1706149839557,-500.0,0.00020822,2]
[312695276,1706149839566,-487.37920221,0.00020822,2]
[312695278,1706149839576,-500.0,0.00020822,2]
[312695279,1706149839584,-151.0,0.00022071,2]
[312695281,1706149839593,-151.0,0.00022071,2]
[312695283,1706149839602,-151.0,0.00022071,2]
[312695285,1706149839612,-151.0,0.00022071,2]
[312695286,1706149839621,-151.0,0.00022071,2]
[312695288,1706149839630,-300.700025,0.00022071,2]
[312695290,1706149839640,-300.700025,0.00022071,2]
[312695292,1706149839649,-1646.103431,0.00022071,2]
[312695293,1706149839658,-1646.103431,0.00022071,2]
[312695295,1706149839667,-151.63703844,0.00022071,2]
[312695297,1706149839676,-151.0,0.00022083,2]
[312695298,1706149839684,-151.0,0.00022083,2]
[312695300,1706149839693,-151.0,0.00022083,2]
[312695302,1706149839700,-151.0,0.00022083,2]
[312695303,1706149839710,-151.0,0.00022083,2]
[312695305,1706149839719,-151.0,0.00022083,2]
[312695307,1706149839729,-300.700025,0.00022083,2]
[312695309,1706149839738,-300.700025,0.00022083,2]
[312695310,1706149839747,-300.700025,0.00022083,2]
[312695312,1706149839756,-300.700025,0.00022083,2]
[312695314,1706149839766,-1646.103431,0.00022083,2]
[312695315,1706149839774,-1646.103431,0.00022083,2]
[312695317,1706149839783,-1646.103431,0.00022083,2]
[312695319,1706149839792,-1646.103431,0.00022083,2]
[312695321,1706149839801,-151.0,0.00022114,2]
[312695322,1706149839810,-151.0,0.00022114,2]
[312695324,1706149839821,-270.77916187,0.00022114,2]
[312695326,1706149839830,-300.700025,0.00022114,2]
[312695327,1706149839839,-300.700025,0.00022114,2]
[312695329,1706149839848,-300.700025,0.00022114,2]
[312695331,1706149839858,-300.700025,0.00022114,2]
[312695333,1706149839867,-300.700025,0.00022114,2]
[312695334,1706149839875,-300.700025,0.00022114,2]
[312695336,1706149839885,-1646.103431,0.00022114,2]
[312695338,1706149839893,-1646.103431,0.00022114,2]
[312695339,1706149839903,-1646.103431,0.00022114,2]
[312695341,1706149839911,-1646.103431,0.00022114,2]
[312695343,1706149839920,-1646.103431,0.00022114,2]
[312695345,1706149839929,-1646.103431,0.00022114,2]
[312695346,1706149839938,-2085.40450746,0.00022115,2]
[312695348,1706149839947,-151.0,0.00022115,2]
[312695350,1706149839956,-151.0,0.00022115,2]
[312695351,1706149839965,-151.0,0.00022115,2]
[312695353,1706149839976,-151.0,0.00022115,2]
[312695355,1706149839985,-151.0,0.00022115,2]
[312695357,1706149839994,-300.700025,0.00022115,2]
[312695358,1706149840003,-300.700016,0.00022115,2]
[312695360,1706149840012,-1646.103431,0.00022115,2]
[312695362,1706149840021,-1646.10344,0.00022115,2]
[312695363,1706149840030,-151.0,0.00022116,2]
[312695365,1706149840040,-151.0,0.00022118,2]
[312695367,1706149840049,-152.43521272,0.00022118,2]
[312695370,1706149840058,-1327.61014966,0.00023,2]
[312695371,1706149840067,-151.0,0.00024801,2]
[312695373,1706149840076,-151.0,0.00024801,2]
[312695375,1706149840085,-151.0,0.00024802,2]
[312695377,1706149840094,-241.615986,0.00024802,2]
[312695379,1706149840103,-1138.97290225,0.00024803,2]
[312695381,1706149840112,-155.28114559,0.00024803,2]
[312695383,1706149840122,-710.43206989,0.00024804,2]
[312695384,1706149840131,-155.11023675,0.00024847,2]
[312695385,1706149840140,-3753.74646613,0.0002488,2]
[312695386,1706149840149,-1245.23746754,0.00024881,2]
[312695387,1706149840162,-427.05058183,0.00024894,2]
[312695388,1706149840171,-154.98885282,0.00024903,2]
[312695389,1706149840180,-713.40763616,0.00024925,2]
[312695390,1706149840189,-2045.12615759,0.00024927,2]
[312695391,1706149840198,-158.94600393,0.0002496,5]
[312695392,1706149840208,-8290.37800899,0.00024984,2]
[312695393,1706149840219,-155.46749464,0.00024993,2]
[312695394,1706149840230,-156.77762867,0.00024993,2]
[312695395,1706149840239,-155.18012711,0.00024993,2]
[312695396,1706149840249,-260.79612059,0.00024997,2]
[312695397,1706149840257,-155.07734054,0.00024997,2]
[312695398,1706149840267,-521.45700213,0.00024998,2]
[312695399,1706149840276,-2474.91045337,0.00024998,2]
[312695400,1706149840285,-4108.74248763,0.00025,2]
[312695401,1706149840295,-4724.75315233,0.00025,2]
[312695402,1706149840304,-155.27081755,0.00025,2]
[312695403,1706149840313,-155.0884766,0.00025,2]
[312695404,1706149840322,-155.24086416,0.00025,2]
[312695405,1706149840331,-682.42721753,0.00025,2]
[312695406,1706149840340,-1470.1693948,0.00025015,2]
[312695407,1706149840349,-1992.7992874,0.00027279,2]
[312695408,1706149840358,-516.52995948,0.00027279,2]
[312695409,1706149840367,-5000.0,0.00027279,2]
[312695410,1706149840376,-3437.440036,0.00027279,2]
[312695411,1706149840385,-35397.35417074,0.00027279,2]
[312695413,1706149840395,-50000.0,0.00027279,2]
[312695414,1706149840404,-156.1445642,0.00027397,2]
[312695415,1706149840413,-239.11215156,0.00028604,2]
[312695416,1706149840422,-187.245557,0.00028604,2]
[312695418,1706149840432,-1951.14094055,0.00029,2]
[312695420,1706149840441,-2543.41353878,0.0002979,7]
[312695422,1706149840451,-154.84515793,0.00029998,2]
[312695424,1706149840460,-679.92481828,0.00029998,2]
[312695426,1706149840470,-160.81828445,0.00029998,2]
[312695428,1706149840481,-849.74465411,0.00029998,2]
[312695430,1706149840490,-2103.40493137,0.00029998,2]